fUST/lending_fUST_20250531
["ID","MTS","AMOUNT","RATE_DAILY","PERIOD"]
[363242220,1748641848438,-323.62785105,0.00018577,2]
[363242221,1748641848447,-637.0,0.000186,2]
[363242222,1748641848457,-191.47486968,0.00018603,2]
[363242223,1748641848467,-800.0,0.00018616,2]
[363242224,1748641848476,-507.66408941,0.00018616,2]
[363242225,1748641848485,-2000.0,0.00018616,2]
[363242226,1748641848495,-2123.68943109,0.00018616,2]
[363242227,1748641848504,-325.28035834,0.00018616,2]
[363242228,1748641848513,-324.32824355,0.00018627,2]
[363242229,1748641848523,-986.75,0.00018629,2]
[363242230,1748641848532,-3194.47,0.00018629,2]
[363242231,1748641848542,-1465.33,0.00018629,2]
[363242232,1748641848551,-151.0,0.0001863,2]
[363242233,1748641848560,-151.0,0.0001863,2]
[363242234,1748641848570,-151.0,0.0001863,2]
[363242235,1748641848579,-210.23,0.0001863,2]
[363242236,1748641848589,-210.23,0.0001863,2]
[363242237,1748641848598,-151.0,0.0001863,2]
[363242238,1748641848607,-151.0,0.0001863,2]
[363242239,1748641848616,-151.0,0.0001863,2]
[363242240,1748641848625,-151.0,0.0001863,2]
[363242241,1748641848635,-219.75798,0.0001863,2]
[363242242,1748641848644,-219.75798,0.0001863,2]
[363242243,1748641848654,-516.363394,0.0001863,2]
[363242244,1748641848663,-430.0,0.0001863,2]
[363242245,1748641848672,-430.0,0.0001863,2]
[363242246,1748641848682,-1254.13,0.0001863,2]
[363242247,1748641848691,-481.24,0.0001863,2]
[363242248,1748641848701,-1234.6,0.0001863,2]
[363242249,1748641848710,-1806.84,0.0001863,2]
[363242250,1748641848719,-430.0,0.0001863,2]
[363242251,1748641848729,-2218.07,0.0001863,2]
[363242252,1748641848738,-2428.29,0.0001863,2]
[363242253,1748641848753,-635.15,0.0001863,2]
[363242254,1748641848763,-507.57,0.0001863,2]
[363242255,1748641848772,-3119.5,0.0001863,2]
[363242256,1748641848781,-517.55,0.0001863,2]
[363242257,1748641848792,-430.0,0.0001863,2]
[363242258,1748641848801,-430.0,0.0001863,2]
[363242259,1748641848811,-609.36,0.0001863,2]
[363242260,1748641848821,-430.0,0.0001863,2]
[363242261,1748641848831,-660.71,0.0001863,2]
[363242262,1748641848840,-430.0,0.0001863,2]
[363242263,1748641848850,-663.44,0.0001863,2]
[363242264,1748641848859,-2525.76,0.0001863,2]
[363242265,1748641848869,-475.44,0.0001863,2]
[363242266,1748641848878,-2730.93,0.0001863,2]
[363242267,1748641848888,-695.56,0.0001863,2]
[363242268,1748641848897,-1254.69,0.0001863,2]
[363242269,1748641848907,-643.19,0.0001863,2]
[363242270,1748641848916,-895.87,0.0001863,2]
[363242271,1748641848925,-691.5,0.0001863,2]
[363242272,1748641848935,-430.0,0.0001863,2]
[363242273,1748641848944,-1550.89,0.0001863,2]
[363242274,1748641848953,-430.0,0.0001863,2]
[363242275,1748641848962,-430.0,0.0001863,2]
[363242276,1748641848972,-430.0,0.0001863,2]
[363242277,1748641848982,-1512.83,0.0001863,2]
[363242278,1748641848991,-1338.85,0.0001863,2]
[363242279,1748641849001,-430.0,0.0001863,2]
[363242280,1748641849011,-884.37,0.0001863,2]
[363242281,1748641849020,-2163.22,0.0001863,2]
[363242282,1748641849030,-806.04,0.0001863,2]
[363242283,1748641849042,-151.0,0.0001863,2]
[363242284,1748641849051,-430.0,0.0001863,2]
[363242285,1748641849061,-800.0,0.00018631,2]
[363242286,1748641849071,-800.0,0.00018633,2]
[363242287,1748641849080,-2176.89934839,0.00018641,9]
[363242288,1748641849090,-191.47486968,0.00018685,2]
[363242289,1748641849099,-3545.93276423,0.00018693,2]
[363242290,1748641849108,-155.85259846,0.000187,2]
[363242291,1748641849118,-151.0,0.000187,2]
[363242292,1748641849128,-961.0,0.00018712,2]
[363242293,1748641849137,-708.0,0.00018712,2]
[363242294,1748641849147,-2228.0,0.00018712,2]
[363242295,1748641849156,-246.835,0.00018712,2]
[363242296,1748641849166,-26433.10673348,0.00018715,2]
[363242297,1748641849176,-151.0,0.00018715,2]
[363242298,1748641849186,-171.956764,0.00018715,2]
[363242299,1748641849195,-171.956764,0.00018715,2]
[363242300,1748641849205,-151.0,0.00018715,2]
[363242301,1748641849214,-165.404491,0.00018715,2]
[363242302,1748641849224,-165.404491,0.00018715,2]
[363242303,1748641849234,-151.0,0.00018715,2]
[363242304,1748641849243,-393.375345,0.00018715,2]
[363242305,1748641849252,-393.375345,0.00018715,2]
[363242306,1748641849261,-151.0,0.00018715,2]
[363242307,1748641849271,-151.0,0.00018715,2]
[363242308,1748641849280,-215.0738,0.00018725,2]
[363242309,1748641849290,-600.0,0.0001874,2]
[363242310,1748641849299,-396.87786114,0.00018754,2]
[363242311,1748641849309,-597.051296,0.00018759,2]
[363242312,1748641849320,-597.051296,0.00018759,2]
[363242313,1748641849329,-1044.356687,0.00018759,2]
[363242314,1748641849339,-1044.356687,0.00018759,2]
[363242315,1748641849348,-570.254782,0.00018759,2]
[363242316,1748641849359,-570.254782,0.00018759,2]
[363242317,1748641849369,-191.47486968,0.00018767,2]
[363242318,1748641849379,-346.032464,0.00018783,2]
[363242319,1748641849388,-346.032464,0.00018783,2]
[363242320,1748641849398,-5903.84511482,0.00018783,2]
[363242321,1748641849408,-1792.80609202,0.00018799,2]
[363242322,1748641849418,-56332.34230842,0.00018799,2]
[363242323,1748641849428,-154.284439,0.00018799,2]
[363242324,1748641849439,-210.23,0.00018799,2]
[363242325,1748641849449,-210.23,0.00018799,2]
[363242326,1748641849459,-151.0,0.00018799,2]
[363242327,1748641849470,-151.0,0.00018799,2]
[363242328,1748641849481,-219.75798,0.00018799,2]
[363242329,1748641849491,-219.75798,0.00018799,2]
[363242330,1748641849501,-151.0,0.00018799,2]
[363242331,1748641849512,-365899.06427071,0.000188,2]
[363242332,1748641978566,5274.0,0.00024658,120]
[363242351,1748642411941,2991730.8896388,0.00021917,60]
[363242362,1748642861002,-195.38392574,0.00014148,2]
[363242363,1748642864351,-270.12733927,0.00014148,2]
[363242365,1748642870594,-301.72121819,0.00014148,2]
[363242366,1748642874487,-172.89261289,0.00014148,2]
[363242367,1748642875955,-192.74847749,0.00014148,2]
[363242368,1748642878798,-224.536575,0.00014148,2]
[363242369,1748642881018,-152.0,0.00014148,2]
[363242370,1748642882818,-154.60661659,0.00014147,2]
[363242371,1748642888673,-145.39338341,0.00014147,2]
[363242372,1748642888698,-159.05788085,0.00014148,2]
[363242373,1748642892507,-161.78481334,0.00014148,2]
[363242374,1748642895331,-154.39425402,0.00014148,2]
[363242375,1748642897450,-156.63888565,0.00014148,2]
[363242377,1748642899955,-312.21939087,0.00014148,2]
[363242378,1748642901651,-195.85382659,0.00014148,2]
[363242379,1748642905099,-173.52088538,0.00014148,2]
[363242380,1748642907549,-218.10873574,0.00014148,2]
[363242381,1748642911814,-212.0045471,0.00014148,2]
[363242382,1748642913070,365.82956,0.00013699,2]
[363242383,1748642914181,-181.86573826,0.00014147,2]
[363242384,1748642915795,-160.71832608,0.00014147,2]
[363242385,1748642917382,-157.41593566,0.00014147,2]
[363242386,1748642917407,-70.46149134,0.00014147,2]
[363242387,1748642919684,-205.25416355,0.00014147,2]
[363242388,1748642921650,-167.347726,0.00014147,2]
[363242389,1748642923964,-56.93661911,0.00014147,2]
[363242390,1748642923988,-157.90957491,0.00014147,2]
[363242391,1748642932065,-255.11607998,0.00014147,2]
[363242392,1748642934957,-86.97434511,0.00014147,2]
[363242393,1748642934980,-274.17565489,0.00014147,2]
[363242394,1748642937735,-189.68195928,0.00014147,2]
[363242395,1748642939527,-36.14238583,0.00014147,2]
[363242396,1748642939550,-146.48565489,0.00014147,2]
[363242397,1748642941945,-239.91861245,0.00014147,2]
[363242398,1748642945330,-152.0,0.00014147,2]
[363242399,1748642952059,-174.57,0.00014146,2]
[363242400,1748642954489,-125.43,0.00014146,2]
[363242401,1748642954512,-23.12575474,0.00014147,2]
[363242402,1748642954537,-65.48001959,0.00014147,2]
[363242403,1748642957234,-306.82480709,0.00014147,2]
[363242404,1748642957258,-150.33941858,0.00014147,2]
[363242405,1748642963455,-159.807577,0.00014147,2]
[363242406,1748642965033,5000.0,0.000141,2]
[363242407,1748642965142,-189.85300442,0.00014147,2]
[363242408,1748642965164,-109.14941858,0.00014147,2]
[363242409,1748642967667,-164.58,0.00014147,2]
[363242410,1748642969857,-226.27058142,0.00014147,2]
[363242411,1748642969881,-121.87941858,0.00014147,2]
[363242412,1748642971653,-216.28331354,0.00014147,2]
[363242413,1748642975518,-273.52668646,0.00014147,2]
[363242414,1748642977185,-22.12502725,0.00014147,2]
[363242415,1748642977209,-288.77224975,0.00014147,2]
[363242416,1748642980249,5000.0,0.000141,2]
[363242417,1748642981452,-211.22775025,0.00014147,2]
[363242418,1748642981485,-121.94374421,0.00014147,2]
[363242419,1748642984496,-261.82249906,0.00014147,2]
[363242420,1748642986643,-116.23375673,0.00014147,2]
[363242421,1748642986668,-87.55313241,0.00014147,2]
[363242422,1748642989592,-193.5442518,0.00014147,2]
[363242423,1748642992955,-151.98457739,0.00014147,2]
[363242424,1748642996130,-66.9180384,0.00014147,2]
[363242425,1748642996159,-128.15942143,0.00014147,2]
[363242426,1748642996200,5000.0,0.000141,2]
[363242427,1748643011843,5000.0,0.000141,2]
[363242428,1748643027204,5000.0,0.000141,2]
[363242443,1748643032317,-300.0,0.00014147,2]
[363242444,1748643032327,-300.0,0.00014147,2]
[363242445,1748643032337,-300.0,0.00014147,2]
[363242446,1748643032346,-300.0,0.00014147,2]
[363242447,1748643032355,-300.0,0.00014147,2]
[363242448,1748643032365,-1200.0,0.00014147,2]
[363242449,1748643032375,-371.84057857,0.00014147,2]
[363242450,1748643032384,-7935.54550661,0.00014148,2]
[363242451,1748643032397,-13711.46112527,0.00014148,2]
[363242452,1748643032406,-248.04866323,0.00015469,2]
[363242453,1748643032417,-420.0,0.00015497,2]
[363242454,1748643032427,-420.0,0.00015497,2]
[363242455,1748643032437,-420.0,0.00015497,2]
[363242456,1748643032446,-1680.0,0.00015562,2]
[363242457,1748643032456,-596.35506514,0.00015569,2]
[363242458,1748643032465,-500.0,0.00015569,2]
[363242459,1748643032476,-300.0,0.00015569,2]
[363242460,1748643032486,-14953.76349316,0.00015571,2]
[363242461,1748643032495,-8479.6101914,0.00015575,2]
[363242462,1748643032505,-2917.87919419,0.00016338,2]
[363242463,1748643032516,-500.0,0.00016437,2]
[363242464,1748643032525,-1000.0,0.00016437,2]
[363242465,1748643032535,-1000.0,0.00016437,2]
[363242466,1748643032546,-1000.0,0.00016437,2]
[363242467,1748643032555,-1000.0,0.00016437,2]
[363242468,1748643032564,-1000.0,0.00016437,2]
[363242470,1748643032573,-666.66,0.00016437,2]
[363242471,1748643032583,-430.0,0.00016438,2]
[363242472,1748643032592,-430.0,0.00016438,2]
[363242473,1748643032605,-430.0,0.00016438,2]
[363242474,1748643032615,-463.06820166,0.00016438,2]
[363242475,1748643032625,-433.1184494,0.00016438,2]
[363242476,1748643032635,-430.0,0.00016438,2]
[363242477,1748643032644,-430.0,0.00016438,2]
[363242478,1748643032654,-430.80705133,0.00016438,2]
[363242479,1748643032664,-430.0,0.00016438,2]
[363242480,1748643032673,-214.72553952,0.00016438,2]
[363242481,1748643032683,-430.0,0.00016438,2]
[363242482,1748643032693,-430.0,0.00016438,2]
[363242483,1748643032703,-392.43320601,0.00016438,2]
[363242484,1748643032713,-430.0,0.00016438,2]
[363242485,1748643032722,-430.0,0.00016438,2]
[363242486,1748643032732,-430.0,0.00016438,2]
[363242487,1748643032742,-430.0,0.00016438,2]
[363242488,1748643032958,-430.0,0.00016438,2]
[363242489,1748643032968,-430.0,0.00016438,2]
[363242490,1748643032978,-430.0,0.00016438,2]
[363242491,1748643032989,-431.65963659,0.00016438,2]
[363242492,1748643032999,-430.0,0.00016438,2]
[363242493,1748643033009,-430.0,0.00016438,2]
[363242494,1748643033018,-430.0,0.00016438,2]
[363242495,1748643033028,-430.0,0.00016438,2]
[363242496,1748643033038,-430.0,0.00016438,2]
[363242497,1748643033048,-430.0,0.00016438,2]
[363242498,1748643033058,-430.0,0.00016438,2]
[363242499,1748643033068,-430.0,0.00016438,2]
[363242500,1748643033078,-430.0,0.00016438,2]
[363242502,1748643033087,-430.0,0.00016438,2]
[363242503,1748643033097,-430.0,0.00016438,2]
[363242504,1748643033107,-430.0,0.00016438,2]
[363242505,1748643033119,-430.0,0.00016438,2]
[363242506,1748643033129,-430.0,0.00016438,2]
[363242507,1748643033138,-430.0,0.00016438,2]
[363242508,1748643033148,-430.0,0.00016438,2]
[363242509,1748643033159,-430.0,0.00016438,2]
[363242510,1748643033169,-430.0,0.00016438,2]
[363242511,1748643033179,-430.0,0.00016438,2]
[363242512,1748643033191,-430.0,0.00016438,2]
[363242513,1748643033200,-430.0,0.00016438,2]
[363242514,1748643033210,-430.0,0.00016438,2]
[363242515,1748643033219,-430.0,0.00016438,2]
[363242516,1748643033229,-442.38,0.00016438,2]
[363242517,1748643033239,-430.0,0.00016438,2]
[363242518,1748643033248,-430.0,0.00016438,2]
[363242519,1748643033258,-430.0,0.00016438,2]
[363242520,1748643033267,-430.0,0.00016438,2]
[363242521,1748643033277,-430.0,0.00016438,2]
[363242522,1748643033287,-430.0,0.00016438,2]
[363242523,1748643033296,-430.0,0.00016438,2]
[363242524,1748643033306,-1000.0,0.00016438,2]
[363242525,1748643033315,-315.7105575,0.00016438,2]
[363242526,1748643033325,-332.84663907,0.00016438,2]
[363242527,1748643033335,-518.68389446,0.00016438,2]
[363242528,1748643033344,-430.0,0.00016438,2]
[363242529,1748643033354,-430.0,0.00016438,2]
[363242530,1748643033364,-230.0,0.00016438,2]
[363242531,1748643033374,-430.0,0.00016438,2]
[363242532,1748643033383,-561.81940469,0.00016438,2]
[363242533,1748643033393,-430.0,0.00016438,2]
[363242534,1748643033403,-430.0,0.00016438,2]
[363242535,1748643033413,-430.0,0.00016438,2]
[363242536,1748643033423,-450.0,0.00016438,2]
[363242537,1748643033432,-430.0,0.00016438,2]
[363242538,1748643033443,-430.0,0.00016438,2]
[363242539,1748643033452,-430.0,0.00016438,2]
[363242540,1748643033462,-430.0,0.00016438,2]
[363242541,1748643033472,-450.0,0.00016438,2]
[363242542,1748643033481,-430.0,0.00016438,2]
[363242543,1748643033491,-430.0,0.00016438,2]
[363242544,1748643033500,-430.0,0.00016438,2]
[363242545,1748643033510,-430.0,0.00016438,2]
[363242546,1748643033519,-430.0,0.00016438,2]
[363242547,1748643033529,-430.0,0.00016438,2]
[363242548,1748643033539,-430.0,0.00016438,2]
[363242549,1748643033548,-430.0,0.00016438,2]
[363242550,1748643033557,-430.0,0.00016438,2]
[363242551,1748643033567,-430.0,0.00016438,2]
[363242552,1748643033576,-430.0,0.00016438,2]
[363242553,1748643033586,-430.0,0.00016438,2]
[363242554,1748643033596,-430.0,0.00016438,2]
[363242555,1748643033606,-430.0,0.00016438,2]
[363242556,1748643033616,-430.0,0.00016438,2]
[363242557,1748643033625,-430.0,0.00016438,2]
[363242558,1748643033636,-430.0,0.00016438,2]
[363242559,1748643033646,-430.0,0.00016438,2]
[363242560,1748643033656,-430.0,0.00016438,2]
[363242561,1748643033665,-430.0,0.00016438,2]
[363242562,1748643033675,-430.0,0.00016438,2]
[363242563,1748643033684,-430.0,0.00016438,2]
[363242564,1748643033693,-430.0,0.00016438,2]
[363242565,1748643033703,-349.48523347,0.00016438,2]
[363242566,1748643033712,-430.0,0.00016438,2]
[363242567,1748643033722,-430.0,0.00016438,2]
[363242568,1748643033732,-430.0,0.00016438,2]
[363242569,1748643033741,-500.0,0.00016438,2]
[363242570,1748643033751,-430.0,0.00016438,2]
[363242571,1748643033760,-430.0,0.00016438,2]
[363242572,1748643033769,-430.0,0.00016438,2]
[363242573,1748643033779,-430.0,0.00016438,2]
[363242574,1748643033788,-430.0,0.00016438,2]
[363242575,1748643033798,-430.0,0.00016438,2]
[363242576,1748643033808,-489.58,0.00016438,2]
[363242577,1748643033818,-1093.76,0.00016438,2]
[363242578,1748643033828,-1701.19,0.00016438,2]
[363242579,1748643033838,-430.0,0.00016438,2]
[363242580,1748643033847,-430.0,0.00016438,2]
[363242581,1748643033857,-430.0,0.00016438,2]
[363242582,1748643033866,-430.0,0.00016438,2]
[363242583,1748643033875,-498.40816944,0.00016438,2]
[363242584,1748643033893,-1101.08,0.00016438,2]
[363242585,1748643033906,-430.0,0.00016438,2]
[363242586,1748643033915,-430.0,0.00016438,2]
[363242587,1748643033926,-430.0,0.00016438,2]
[363242588,1748643033935,-430.0,0.00016438,2]
[363242589,1748643033945,-430.0,0.00016438,2]
[363242590,1748643033955,-497.0,0.00016438,2]
[363242591,1748643033965,-430.0,0.00016438,2]
[363242592,1748643033975,-453.43897535,0.00016438,2]
[363242593,1748643033985,-430.0,0.00016438,2]
[363242594,1748643033994,-430.0,0.00016438,2]
[363242595,1748643034004,-430.0,0.00016438,2]
[363242596,1748643034014,-1874.97,0.00016438,2]
[363242597,1748643034024,-430.0,0.00016438,2]
[363242598,1748643034034,-430.0,0.00016438,2]
[363242599,1748643034044,-430.0,0.00016438,2]
[363242600,1748643034053,-461.7281109,0.00016438,2]
[363242601,1748643034063,-2403.46,0.00016438,2]
[363242602,1748643034072,-430.0,0.00016438,2]
[363242603,1748643034082,-1651.37,0.00016438,2]
[363242604,1748643034091,-672.44,0.00016438,2]
[363242605,1748643034101,-876.04,0.00016438,2]
[363242606,1748643034110,-430.0,0.00016438,2]
[363242607,1748643034124,-430.0,0.00016438,2]
[363242608,1748643034134,-430.0,0.00016438,2]
[363242609,1748643034143,-430.0,0.00016438,2]
[363242610,1748643034152,-1717.3,0.00016438,2]
[363242611,1748643034162,-457.02,0.00016438,2]
[363242612,1748643034172,-430.0,0.00016438,2]
[363242613,1748643034182,-430.0,0.00016438,2]
[363242614,1748643034193,-430.0,0.00016438,2]
[363242615,1748643034203,-430.0,0.00016438,2]
[363242616,1748643034213,-430.0,0.00016438,2]
[363242617,1748643034223,-500.0,0.00016438,2]
[363242618,1748643034233,-500.0,0.00016438,2]
[363242619,1748643034243,-500.0,0.00016438,2]
[363242620,1748643034253,-500.0,0.00016438,2]
[363242621,1748643034263,-500.0,0.00016438,2]
[363242622,1748643034273,-500.0,0.00016438,2]
[363242623,1748643034283,-452.05,0.00016438,2]
[363242624,1748643034294,-476.36,0.00016438,2]
[363242625,1748643034304,-380.0,0.00016438,2]
[363242626,1748643034314,-430.0,0.00016438,2]
[363242627,1748643034324,-539.59,0.00016438,2]
[363242628,1748643034334,-529.04,0.00016438,2]
[363242629,1748643034344,-430.0,0.00016438,2]
[363242630,1748643034354,-430.0,0.00016438,2]
[363242631,1748643034364,-430.0,0.00016438,2]
[363242632,1748643034374,-430.0,0.00016438,2]
[363242633,1748643034385,-2715.81,0.00016438,2]
[363242634,1748643034395,-581.04,0.00016438,2]
[363242635,1748643034404,-430.0,0.00016438,2]
[363242636,1748643034414,-567.69,0.00016438,2]
[363242637,1748643034423,-518.63,0.00016438,2]
[363242638,1748643034432,-430.0,0.00016438,2]
[363242639,1748643034442,-430.0,0.00016438,2]
[363242640,1748643034452,-430.0,0.00016438,2]
[363242641,1748643034461,-2250.61,0.00016438,2]
[363242642,1748643034471,-430.0,0.00016438,2]
[363242643,1748643034481,-1207.03,0.00016438,2]
[363242644,1748643034491,-430.0,0.00016438,2]
[363242645,1748643034500,-430.0,0.00016438,2]
[363242646,1748643034510,-430.0,0.00016438,2]
[363242647,1748643034519,-430.0,0.00016438,2]
[363242648,1748643034529,-1352.3,0.00016438,2]
[363242649,1748643034538,-2071.44379927,0.00016438,2]
[363242655,1748643038376,-596.35506514,0.00015569,2]
[363242656,1748643038388,-270.89996534,0.00015569,2]
[363242657,1748643038397,-596.35506514,0.00015569,2]
[363242658,1748643038408,-596.35506514,0.00015569,2]
[363242659,1748643038417,-596.35506514,0.00015569,2]
[363242660,1748643038427,-500.0,0.00015569,2]
[363242661,1748643038437,-500.0,0.00015569,2]
[363242662,1748643038446,-500.0,0.00015569,2]
[363242663,1748643038455,-596.35506514,0.00015569,2]
[363242664,1748643038465,-596.35506514,0.00015569,2]
[363242665,1748643038475,-596.35506514,0.00015569,2]
[363242666,1748643038484,-596.35506514,0.00015569,2]
[363242667,1748643038494,-596.35506514,0.00015569,2]
[363242668,1748643038503,-596.35506514,0.00015569,2]
[363242669,1748643038513,-596.35506514,0.00015569,2]
[363242670,1748643038523,-596.35506514,0.00015569,2]
[363242671,1748643038532,-30.50620073,0.00016438,2]
[363242672,1748643038542,-430.0,0.00016438,2]
[363242673,1748643038551,-430.0,0.00016438,2]
[363242674,1748643038561,-430.0,0.00016438,2]
[363242675,1748643038570,-430.0,0.00016438,2]
[363242676,1748643038579,-430.0,0.00016438,2]
[363242677,1748643038589,-430.0,0.00016438,2]
[363242678,1748643038598,-430.0,0.00016438,2]
[363242679,1748643038607,-576.12,0.00016438,2]
[363242680,1748643038616,-400.0,0.00016438,2]
[363242681,1748643038627,-1216.92,0.00016438,2]
[363242682,1748643038638,-268.95291773,0.00016438,2]
[363242683,1748643038647,-430.0,0.00016438,2]
[363242684,1748643038657,-808.96,0.00016438,2]
[363242685,1748643038667,-430.0,0.00016438,2]
[363242686,1748643038677,-238.30130119,0.00016438,2]
[363242687,1748643038688,-430.0,0.00016438,2]
[363242688,1748643038698,-1374.92,0.00016438,2]
[363242689,1748643038708,-430.0,0.00016438,2]
[363242690,1748643038719,-400.0,0.00016438,2]
[363242691,1748643038731,-430.0,0.00016438,2]
[363242692,1748643038744,-430.0,0.00016438,2]
[363242693,1748643038753,-430.0,0.00016438,2]
[363242694,1748643038764,-430.0,0.00016438,2]
[363242695,1748643038773,-320.0,0.00016438,2]
[363242696,1748643038783,-1048.82,0.00016438,2]
[363242697,1748643038792,-430.0,0.00016438,2]
[363242698,1748643038801,-430.0,0.00016438,2]
[363242699,1748643038813,-430.0,0.00016438,2]
[363242700,1748643038823,-430.0,0.00016438,2]
[363242701,1748643038833,-430.0,0.00016438,2]
[363242702,1748643038844,-738.52,0.00016438,2]
[363242703,1748643038856,-430.0,0.00016438,2]
[363242704,1748643038865,-430.0,0.00016438,2]
[363242705,1748643038875,-430.0,0.00016438,2]
[363242706,1748643038887,-430.0,0.00016438,2]
[363242707,1748643038897,-430.0,0.00016438,2]
[363242708,1748643038907,-185.58132125,0.00016438,2]
[363242709,1748643038916,-430.0,0.00016438,2]
[363242710,1748643038925,-170.0,0.00016438,2]
[363242711,1748643038935,-430.0,0.00016438,2]
[363242712,1748643038944,-430.0,0.00016438,2]
[363242713,1748643038954,-430.0,0.00016438,2]
[363242714,1748643038963,-430.0,0.00016438,2]
[363242715,1748643038972,-430.0,0.00016438,2]
[363242716,1748643038982,-430.0,0.00016438,2]
[363242717,1748643038991,-430.0,0.00016438,2]
[363242718,1748643039000,-430.0,0.00016438,2]
[363242719,1748643039010,-510.0,0.00016438,2]
[363242720,1748643039019,-430.0,0.00016438,2]
[363242721,1748643039028,-430.0,0.00016438,2]
[363242722,1748643039038,-430.0,0.00016438,2]
[363242723,1748643039047,-1630.31,0.00016438,2]
[363242724,1748643039056,-430.0,0.00016438,2]
[363242725,1748643039066,-152.0,0.0001648,2]
[363242726,1748643039075,-151.0,0.00016547,2]
[363242727,1748643039084,-151.0,0.00016547,2]
[363242728,1748643039093,-151.0,0.00016547,2]
[363242729,1748643039103,-151.92719648,0.00016547,2]
[363242730,1748643039112,-151.0,0.00016547,2]
[363242731,1748643039125,-151.0,0.00016547,2]
[363242732,1748643039137,-288.06439291,0.00016547,2]
[363242733,1748643039146,-151.0,0.00016574,2]
[363242734,1748643039156,-151.0,0.00016574,2]
[363242735,1748643039166,-246.43046613,0.00016574,2]
[363242736,1748643039175,-153.21998452,0.00016574,2]
[363242737,1748643039185,-151.0,0.00016574,2]
[363242738,1748643039196,-151.0,0.00016602,2]
[363242739,1748643039205,-500.0,0.00016611,2]
[363242740,1748643039215,-205.60730553,0.00016629,2]
[363242741,1748643039224,-248.04866321,0.00016654,2]
[363242742,1748643039233,-3568.7,0.00016669,2]
[363242743,1748643039243,-600.0,0.00016711,2]
[363242744,1748643039252,-554.8,0.00016711,2]
[363242745,1748643039261,-425.81570145,0.00016712,2]
[363242746,1748643039271,-430.0,0.00016712,2]
[363242747,1748643039280,-430.0,0.00016712,2]
[363242748,1748643039289,-430.0,0.00016712,2]
[363242749,1748643039299,-430.0,0.00016712,2]
[363242750,1748643039308,-544.61908698,0.00016712,2]
[363242751,1748643039318,-430.0,0.00016712,2]
[363242752,1748643039328,-430.0,0.00016712,2]
[363242753,1748643039338,-430.0,0.00016712,2]
[363242754,1748643039348,-430.0,0.00016712,2]
[363242755,1748643039358,-430.0,0.00016712,2]
[363242756,1748643039368,-1093.76,0.00016712,2]
[363242757,1748643039378,-1101.08,0.00016712,2]
[363242758,1748643039389,-430.0,0.00016712,2]
[363242759,1748643039398,-430.0,0.00016712,2]
[363242760,1748643039539,-1874.97,0.00016712,2]
[363242761,1748643039570,-2403.46,0.00016712,2]
[363242762,1748643039579,-1651.37,0.00016712,2]
[363242763,1748643039588,-430.0,0.00016712,2]
[363242764,1748643039598,-672.44,0.00016712,2]
[363242765,1748643039607,-876.04,0.00016712,2]
[363242766,1748643039616,-430.0,0.00016712,2]
[363242767,1748643039625,-430.0,0.00016712,2]
[363242768,1748643039636,-1717.3,0.00016712,2]
[363242769,1748643039646,-457.02,0.00016712,2]
[363242770,1748643039655,-430.0,0.00016712,2]